fUSD/lending_fUSD_20250213
["ID","MTS","AMOUNT","RATE_DAILY","PERIOD"]
[352990957,1739477437578,-712.9242943,0.00013484,2]
[352990958,1739477437588,-324.3496565,0.0001349,2]
[352990959,1739477437597,-1233.89,0.00013522,2]
[352990960,1739477437606,-300.0,0.00013522,2]
[352990961,1739477437616,-438.93,0.00013522,2]
[352990962,1739477437625,-87.41819906,0.00013522,2]
[352990963,1739477437636,-62.58180094,0.00013522,2]
[352990964,1739477437647,-150.0,0.00013522,2]
[352990965,1739477437657,-300.0,0.00013522,2]
[352990966,1739477437666,-877.86,0.00013522,2]
[352990967,1739477437676,-300.0,0.00013522,2]
[352990968,1739477437685,-629.63,0.00013522,2]
[352990969,1739477437694,-150.0,0.00013522,2]
[352990970,1739477437704,-150.0,0.00013522,2]
[352990971,1739477437713,-438.84,0.00013522,2]
[352990972,1739477437722,-2000.0,0.00013546,3]
[352990973,1739477437731,-162.95753212,0.00013598,2]
[352990974,1739477437741,-200.0,0.000136,2]
[352990975,1739477437751,-431.95362761,0.00013625,2]
[352990976,1739477437762,-152.0,0.00013632,3]
[352990977,1739477437772,-155.54,0.0001365,2]
[352990978,1739477437782,-97.25300013,0.00013655,2]
[352990979,1739477437793,-498.014838,0.00013655,2]
[352990980,1739477437807,-343.47216187,0.00013655,2]
[352990981,1739477437817,-286.5497798,0.0001368,2]
[352990982,1739477437828,-2812.943,0.00013697,2]
[352990983,1739477437837,-174.19,0.00013697,2]
[352990984,1739477437847,-500.0,0.00013698,2]
[352990986,1739477437856,-500.0,0.00013698,2]
[352990988,1739477437866,-500.38150128,0.00013698,2]
[352990990,1739477437875,-500.0,0.00013698,2]
[352990992,1739477437884,-500.0,0.00013698,2]
[352990994,1739477437894,-500.0,0.00013698,2]
[352990996,1739477437903,-500.0,0.00013698,2]
[352990998,1739477437913,-500.0,0.00013698,2]
[352991000,1739477437922,-500.0,0.00013698,2]
[352991002,1739477437932,-500.0,0.00013698,2]
[352991004,1739477437941,-411.71078177,0.00013698,2]
[352991006,1739477437951,-194.73879696,0.00013698,2]
[352991008,1739477437961,-500.0,0.00013698,2]
[352991010,1739477437971,-332.13898128,0.00013698,2]
[352991013,1739477437983,-167.86101872,0.00013698,2]
[352991015,1739477437993,-308.01898128,0.00013698,2]
[352991031,1739477438102,-191.98101872,0.00013698,2]
[352991035,1739477438112,-94.90451166,0.00013698,2]
[352991038,1739477438123,-484.03977468,0.00013698,2]
[352991040,1739477438133,-500.0,0.00013698,2]
[352991042,1739477438142,-500.0,0.00013698,2]
[352991043,1739477438152,-500.0,0.00013698,2]
[352991045,1739477438161,-500.0,0.00013698,2]
[352991047,1739477438170,-517.72812565,0.00013698,2]
[352991049,1739477438180,-500.0,0.00013698,2]
[352991051,1739477438189,-501.71375177,0.00013698,2]
[352991053,1739477438199,-501.19140794,0.00013698,2]
[352991055,1739477438208,-500.0,0.00013698,2]
[352991057,1739477438217,-500.0,0.00013698,2]
[352991059,1739477438227,-305.55975436,0.00013698,2]
[352991061,1739477438236,-1685.14817,0.00013698,2]
[352991063,1739477438245,-500.0,0.00013698,2]
[352991065,1739477438256,-500.0,0.00013698,2]
[352991067,1739477438268,-1344.62,0.00013698,2]
[352991069,1739477438277,-500.0,0.00013698,2]
[352991071,1739477438287,-592.27,0.00013698,2]
[352991073,1739477438296,-2683.199131,0.00013698,2]
[352991075,1739477438307,-501.4361653,0.00013698,2]
[352991077,1739477438316,-501.25075891,0.00013698,2]
[352991079,1739477438326,-155.860275,0.00013698,2]
[352991081,1739477438337,-894.15,0.00013698,2]
[352991083,1739477438346,-500.0,0.00013698,2]
[352991085,1739477438355,-500.0,0.00013698,2]
[352991087,1739477438365,-509.66161508,0.00013698,2]
[352991089,1739477438374,-608.6,0.00013698,2]
[352991091,1739477438384,-500.0,0.00013698,2]
[352991093,1739477438393,-500.0,0.00013698,2]
[352991095,1739477438402,-1196.18,0.00013698,2]
[352991097,1739477438411,-500.0,0.00013698,2]
[352991099,1739477438420,-500.0,0.00013698,2]
[352991101,1739477438430,-544.11,0.00013698,2]
[352991103,1739477438439,-352.6195547,0.00013698,2]
[352991105,1739477438452,-147.3804453,0.00013698,2]
[352991107,1739477438461,-500.0,0.00013698,2]
[352991109,1739477438470,-500.0,0.00013698,2]
[352991111,1739477438480,-500.0,0.00013698,2]
[352991113,1739477438489,-1280.98,0.00013698,2]
[352991114,1739477438499,-500.0,0.00013698,2]
[352991116,1739477438508,-500.0,0.00013698,2]
[352991117,1739477438517,-643.31806339,0.00013698,2]
[352991119,1739477438526,-500.0,0.00013698,2]
[352991121,1739477438535,-500.0,0.00013698,2]
[352991123,1739477438545,-611.21,0.00013698,2]
[352991124,1739477438554,-500.0,0.00013698,2]
[352991126,1739477438564,-500.0,0.00013698,2]
[352991128,1739477438573,-500.0,0.00013698,2]
[352991130,1739477438582,-737.95,0.00013698,2]
[352991132,1739477438592,-600.13,0.00013698,2]
[352991133,1739477438601,-704.56,0.00013698,2]
[352991135,1739477438610,-500.0,0.00013698,2]
[352991137,1739477438619,-504.56899706,0.00013698,2]
[352991139,1739477438628,-500.0,0.00013698,2]
[352991140,1739477438637,-500.0,0.00013698,2]
[352991142,1739477438646,-500.0,0.00013698,2]
[352991144,1739477438656,-501.33004984,0.00013698,2]
[352991146,1739477438666,-500.0,0.00013698,2]
[352991148,1739477438675,-609.18,0.00013698,2]
[352991149,1739477438684,-500.0,0.00013698,2]
[352991151,1739477438693,-500.0,0.00013698,2]
[352991153,1739477438702,-500.0,0.00013698,2]
[352991155,1739477438711,-595.28310311,0.00013698,2]
[352991156,1739477438721,-500.0,0.00013698,2]
[352991158,1739477438731,-500.0,0.00013698,2]
[352991160,1739477438742,-500.0,0.00013698,2]
[352991162,1739477438751,-500.0,0.00013698,2]
[352991164,1739477438761,-500.0,0.00013698,2]
[352991166,1739477438770,-1132.88,0.00013698,2]
[352991167,1739477438779,-539.98,0.00013698,2]
[352991169,1739477438789,-500.0,0.00013698,2]
[352991171,1739477438799,-687.04,0.00013698,2]
[352991173,1739477438808,-500.0,0.00013698,2]
[352991175,1739477438818,-500.0,0.00013698,2]
[352991176,1739477438827,-548.04,0.00013698,2]
[352991178,1739477438836,-500.0,0.00013698,2]
[352991180,1739477438845,-500.0,0.00013698,2]
[352991182,1739477438854,-500.0,0.00013698,2]
[352991184,1739477438863,-839.63,0.00013698,2]
[352991185,1739477438872,-752.06,0.00013698,2]
[352991187,1739477438882,-500.0,0.00013698,2]
[352991189,1739477438891,-822.55,0.00013698,2]
[352991191,1739477438900,-792.97,0.00013698,2]
[352991193,1739477438910,-500.0,0.00013698,2]
[352991195,1739477438919,-500.0,0.00013698,2]
[352991197,1739477438928,-934.54,0.00013698,2]
[352991198,1739477438937,-500.0,0.00013698,2]
[352991200,1739477438946,-500.0,0.00013698,2]
[352991202,1739477438955,-500.0,0.00013698,2]
[352991204,1739477438965,-2307.72,0.00013698,2]
[352991206,1739477438974,-688.83,0.00013698,2]
[352991208,1739477438982,-894.43,0.00013698,2]
[352991209,1739477438991,-1849.78,0.00013698,2]
[352991211,1739477439001,-1913.73,0.00013698,2]
[352991213,1739477439010,-500.0,0.00013698,2]
[352991215,1739477439018,-500.0,0.00013698,2]
[352991216,1739477439027,-1433.72,0.00013698,2]
[352991218,1739477439037,-661.24,0.00013698,2]
[352991220,1739477439046,-500.0,0.00013698,2]
[352991222,1739477439055,-340.91760276,0.00013698,2]
[352991224,1739477439067,-592.39,0.00013698,2]
[352991225,1739477439077,-1718.47,0.00013698,2]
[352991227,1739477439086,-500.0,0.00013698,2]
[352991229,1739477439096,-500.0,0.00013698,2]
[352991231,1739477439105,-1388.54,0.00013698,2]
[352991232,1739477439114,-827.51,0.00013698,2]
[352991234,1739477439123,-64.25516556,0.00013698,2]
[352991237,1739477439139,-358.33485164,0.00013698,2]
[352991239,1739477439157,-1049.0399828,0.00013698,2]
[352991241,1739477439167,-500.0,0.00013698,2]
[352991243,1739477439177,-1363.15,0.00013698,2]
[352991245,1739477439186,-500.0,0.00013698,2]
[352991247,1739477439196,-500.0,0.00013698,2]
[352991249,1739477439205,-866.74,0.00013698,2]
[352991250,1739477439215,-500.0,0.00013698,2]
[352991252,1739477439224,-500.0,0.00013698,2]
[352991254,1739477439234,-500.0,0.00013698,2]
[352991256,1739477439243,-645.28,0.00013698,2]
[352991258,1739477439252,-542.76,0.00013698,2]
[352991260,1739477439266,-1121.76,0.00013698,2]
[352991262,1739477439276,-589.65,0.00013698,2]
[352991263,1739477439285,-2287.33,0.00013698,2]
[352991265,1739477439294,-738.79,0.00013698,2]
[352991267,1739477439305,-500.0,0.00013698,2]
[352991270,1739477439317,-1944.48,0.00013698,2]
[352991273,1739477439327,-979.35,0.00013698,2]
[352991276,1739477439337,-500.0,0.00013698,2]
[352991278,1739477439346,-500.0,0.00013698,2]
[352991281,1739477439356,-1626.41,0.00013698,2]
[352991283,1739477439365,-731.82,0.00013698,2]
[352991286,1739477439374,-500.0,0.00013698,2]
[352991289,1739477439383,-500.0,0.00013698,2]
[352991292,1739477439392,-1097.74,0.00013698,2]
[352991295,1739477439402,-2053.66,0.00013698,2]
[352991298,1739477439412,-884.12,0.00013698,2]
[352991299,1739477439421,-1670.64,0.00013698,2]
[352991301,1739477439430,-1579.11,0.00013698,2]
[352991303,1739477439440,-500.0,0.00013698,2]
[352991305,1739477439449,-500.0,0.00013698,2]
[352991307,1739477439460,-500.0,0.00013698,2]
[352991308,1739477439470,-1181.94,0.00013698,2]
[352991310,1739477439479,-307.39925558,0.00013698,2]
[352991312,1739477439488,-500.0,0.00013698,2]
[352991314,1739477439497,-500.0,0.00013698,2]
[352991315,1739477439506,-2170.08,0.00013698,2]
[352991318,1739477439515,-798.13,0.00013698,2]
[352991320,1739477439525,-507.92,0.00013698,2]
[352991323,1739477439534,-750.93,0.00013698,2]
[352991325,1739477439544,-876.76,0.00013698,2]
[352991327,1739477439553,-1035.69,0.00013698,2]
[352991329,1739477439564,-526.53,0.00013698,2]
[352991330,1739477439573,-1690.47,0.00013698,2]
[352991332,1739477439582,-1029.87,0.00013698,2]
[352991353,1739477439816,-1900.27,0.00013698,2]
[352991355,1739477439830,-500.0,0.00013698,2]
[352991357,1739477439840,-785.89,0.00013698,2]
[352991359,1739477439850,-500.0,0.00013698,2]
[352991360,1739477439859,-1358.11,0.00013698,2]
[352991362,1739477439868,-500.0,0.00013698,2]
[352991364,1739477439877,-500.0,0.00013698,2]
[352991366,1739477439887,-500.0,0.00013698,2]
[352991368,1739477439896,-500.0,0.00013698,2]
[352991370,1739477439906,-500.0,0.00013698,2]
[352991372,1739477439915,-626.06,0.00013698,2]
[352991373,1739477439924,-1786.45,0.00013698,2]
[352991375,1739477439934,-1140.89,0.00013698,2]
[352991377,1739477439944,-247.00293597,0.00013698,2]
[352991379,1739477439953,-500.0,0.00013698,2]
[352991381,1739477439962,-572.3,0.00013698,2]
[352991383,1739477439972,-500.0,0.00013698,2]
[352991385,1739477439981,-972.59,0.00013698,2]
[352991386,1739477439990,-894.98,0.00013698,2]
[352991388,1739477439999,-500.0,0.00013698,2]
[352991390,1739477440010,-298.44454881,0.00013698,2]
[352991392,1739477440019,-1064.31,0.00013698,2]
[352991394,1739477440028,-500.0,0.00013698,2]
[352991396,1739477440038,-1812.82,0.00013698,2]
[352991397,1739477440047,-826.45,0.00013698,2]
[352991399,1739477440056,-500.0,0.00013698,2]
[352991401,1739477440067,-500.0,0.00013698,2]
[352991403,1739477440077,-718.29,0.00013698,2]
[352991405,1739477440088,-601.93,0.00013698,2]
[352991407,1739477440098,-1629.59,0.00013698,2]
[352991409,1739477440107,-503.95,0.00013698,2]
[352991411,1739477440116,-1710.0,0.00013698,2]
[352991413,1739477440126,-500.0,0.00013698,2]
[352991415,1739477440136,-1238.38,0.00013698,2]
[352991417,1739477440145,-819.77,0.00013698,2]
[352991418,1739477440156,-503.60468531,0.00013698,2]
[352991420,1739477440166,-492.33897128,0.00013698,2]
[352991422,1739477440176,-1290.37,0.00013698,2]
[352991424,1739477440186,-940.02,0.00013698,2]
[352991426,1739477440195,-500.0,0.00013698,2]
[352991428,1739477440204,-1010.58,0.00013698,2]
[352991430,1739477440214,-500.0,0.00013698,2]
[352991432,1739477440223,-560.57,0.00013698,2]
[352991434,1739477440233,-500.0,0.00013698,2]
[352991436,1739477440243,-500.0,0.00013698,2]
[352991437,1739477440252,-500.0,0.00013698,2]
[352991439,1739477440265,-883.23,0.00013698,2]
[352991441,1739477440275,-860.78,0.00013698,2]
[352991443,1739477440285,-527.74313274,0.00013698,2]
[352991445,1739477440294,-971.94,0.00013698,2]
[352991447,1739477440303,-506.51708554,0.00013698,2]
[352991448,1739477440312,-2232.85,0.00013698,2]
[352991450,1739477440322,-202.79,0.00013698,2]
[352991452,1739477440331,-893.87,0.00013698,2]
[352991454,1739477440343,-500.0,0.00013698,2]
[352991456,1739477440353,-1057.45,0.00013698,2]
[352991457,1739477440361,-1610.19,0.00013698,2]
[352991458,1739477440370,-404.05967646,0.00013698,2]
[352991459,1739477440379,-1745.6,0.00013698,2]
[352991460,1739477440387,-565.22,0.00013698,2]
[352991461,1739477440396,-500.0,0.00013698,2]
[352991462,1739477440405,-2124.67,0.00013698,2]
[352991463,1739477440414,-1147.19,0.00013698,2]
[352991464,1739477440423,-500.0,0.00013698,2]
[352991465,1739477440432,-500.0,0.00013698,2]
[352991466,1739477440441,-1175.61,0.00013698,2]
[352991467,1739477440450,-500.0,0.00013698,2]
[352991468,1739477440459,-451.24123776,0.00013698,2]
[352991469,1739477440468,-500.0,0.00013698,2]
[352991470,1739477440477,-1527.42,0.00013698,2]
[352991471,1739477440486,-556.41,0.00013698,2]
[352991472,1739477440495,-500.0,0.00013698,2]
[352991473,1739477440504,-1196.91,0.00013698,2]
[352991474,1739477440513,-611.13,0.00013698,2]
[352991475,1739477440522,-1018.15,0.00013698,2]
[352991476,1739477440531,-1079.09,0.00013698,2]
[352991478,1739477440542,-974.86,0.00013698,2]
[352991479,1739477440551,-500.0,0.00013698,2]
[352991481,1739477440562,-500.0,0.00013698,2]
[352991483,1739477440571,-829.02,0.00013698,2]
[352991485,1739477440580,-1653.23,0.00013698,2]
[352991487,1739477440591,-652.55,0.00013698,2]
[352991489,1739477440600,-500.0,0.00013698,2]
[352991491,1739477440610,-1220.62,0.00013698,2]
[352991493,1739477440619,-500.0,0.00013698,2]
[352991495,1739477440628,-2095.76,0.00013698,2]
[352991497,1739477440638,-2249.01,0.00013698,2]
[352991499,1739477440647,-500.0,0.00013698,2]
[352991501,1739477440656,-500.0,0.00013698,2]
[352991502,1739477440665,-2172.01,0.00013698,2]
[352991505,1739477440675,-500.0,0.00013698,2]
[352991507,1739477440684,-500.0,0.00013698,2]
[352991508,1739477440694,-500.0,0.00013698,2]
[352991510,1739477440704,-1571.39,0.00013698,2]
[352991512,1739477440713,-500.0,0.00013698,2]
[352991514,1739477440723,-558.37325609,0.00013698,2]
[352991517,1739477440733,-500.0,0.00013698,2]
[352991519,1739477440743,-1414.8,0.00013698,2]
[352991521,1739477440753,-1350.99,0.00013698,2]
[352991523,1739477440763,-785.95,0.00013698,2]
[352991524,1739477440771,-500.0,0.00013698,2]
[352991526,1739477440781,-500.0,0.00013698,2]
[352991528,1739477440791,-500.0,0.00013698,2]
[352991530,1739477440800,-1343.11,0.00013698,2]
[352991532,1739477440810,-500.0,0.00013698,2]
[352991534,1739477440820,-500.0,0.00013698,2]
[352991536,1739477440830,-500.0,0.00013698,2]
[352991538,1739477440839,-746.48,0.00013698,2]
[352991540,1739477440848,-507.28165359,0.00013698,2]
[352991542,1739477440858,-969.62,0.00013698,2]
[352991544,1739477440867,-873.81,0.00013698,2]
[352991546,1739477440876,-500.0,0.00013698,2]
[352991548,1739477440886,-500.0,0.00013698,2]
[352991550,1739477440895,-574.85,0.00013698,2]
[352991552,1739477440905,-734.86,0.00013698,2]
[352991554,1739477440915,-500.0,0.00013698,2]
[352991556,1739477440925,-561.17,0.00013698,2]
[352991558,1739477440934,-500.0,0.00013698,2]
[352991560,1739477440944,-1019.12,0.00013698,2]
[352991562,1739477440954,-588.85,0.00013698,2]
[352991564,1739477440963,-500.0,0.00013698,2]
[352991566,1739477440973,-500.0,0.00013698,2]
[352991568,1739477440983,-1574.22,0.00013698,2]
[352991570,1739477440992,-500.0,0.00013698,2]
[352991572,1739477441002,-500.0,0.00013698,2]
[352991574,1739477441011,-500.0,0.00013698,2]
[352991576,1739477441021,-500.0,0.00013698,2]
[352991578,1739477441030,-2849.29,0.00013698,2]
[352991580,1739477441039,-1220.5,0.00013698,2]
[352991582,1739477441049,-3443.53,0.00013698,2]
[352991584,1739477441059,-500.0,0.00013698,2]
[352991586,1739477441071,-606.35803923,0.00013698,2]
[352991588,1739477441080,-1030.8,0.00013698,2]
[352991590,1739477441090,-2659.26,0.00013698,2]
[352991592,1739477441099,-1417.83,0.00013698,2]
[352991594,1739477441108,-726.33,0.00013698,2]
[352991596,1739477441118,-500.0,0.00013698,2]
[352991598,1739477441127,-500.0,0.00013698,2]
[352991600,1739477441137,-500.0,0.00013698,2]
[352991602,1739477441146,-993.83,0.00013698,2]
[352991604,1739477441156,-500.0,0.00013698,2]
[352991606,1739477441165,-538.11,0.00013698,2]
[352991608,1739477441175,-897.65,0.00013698,2]
[352991610,1739477441184,-1977.47,0.00013698,2]
[352991612,1739477441194,-500.0,0.00013698,2]
[352991614,1739477441203,-500.0,0.00013698,2]
[352991616,1739477441213,-500.0,0.00013698,2]
[352991618,1739477441222,-500.0,0.00013698,2]
[352991620,1739477441231,-1272.35,0.00013698,2]
[352991622,1739477441241,-500.0,0.00013698,2]
[352991624,1739477441250,-500.0,0.00013698,2]
[352991626,1739477441263,-500.0,0.00013698,2]
[352991628,1739477441272,-2097.01,0.00013698,2]
[352991630,1739477441282,-1567.56,0.00013698,2]
[352991632,1739477441291,-806.8,0.00013698,2]
[352991634,1739477441302,-2550.36,0.00013698,2]
[352991636,1739477441312,-2585.04,0.00013698,2]
[352991638,1739477441321,-1155.51,0.00013698,2]
[352991640,1739477441331,-500.0,0.00013698,2]
[352991642,1739477441346,-500.0,0.00013698,2]
[352991644,1739477441356,-910.68,0.00013698,2]
[352991646,1739477441366,-765.3,0.00013698,2]
[352991648,1739477441376,-2625.1,0.00013698,2]
[352991650,1739477441385,-1575.61,0.00013698,2]
[352991652,1739477441394,-763.29,0.00013698,2]
[352991654,1739477441404,-500.0,0.00013698,2]
[352991656,1739477441414,-610.49,0.00013698,2]
[352991658,1739477441423,-500.0,0.00013698,2]
[352991660,1739477441433,-500.0,0.00013698,2]
[352991662,1739477441442,-500.0,0.00013698,2]
[352991664,1739477441451,-2200.66,0.00013698,2]
[352991666,1739477441460,-500.0,0.00013698,2]
[352991668,1739477441469,-543.98,0.00013698,2]
[352991670,1739477441479,-1964.49,0.00013698,2]
[352991672,1739477441488,-760.93,0.00013698,2]
[352991674,1739477441497,-500.0,0.00013698,2]
[352991676,1739477441507,-500.0,0.00013698,2]
[352991678,1739477441516,-500.0,0.00013698,2]
[352991680,1739477441525,-2962.35,0.00013698,2]
[352991682,1739477441534,-500.0,0.00013698,2]
[352991684,1739477441543,-2096.06,0.00013698,2]
[352991686,1739477441552,-500.0,0.00013698,2]
[352991688,1739477441560,-737.25,0.00013698,2]
[352991690,1739477441570,-500.0,0.00013698,2]
[352991692,1739477441578,-4204.59,0.00013698,2]
[352991694,1739477441588,-1213.32,0.00013698,2]
[352991696,1739477441598,-742.17,0.00013698,2]
[352991698,1739477441609,-757.23,0.00013698,2]
[352991700,1739477441619,-500.0,0.00013698,2]
[352991702,1739477441627,-558.99,0.00013698,2]
[352991704,1739477441638,-513.83,0.00013698,2]
[352991706,1739477441647,-1606.2,0.00013698,2]
[352991708,1739477441656,-602.57,0.00013698,2]
[352991710,1739477441665,-750.01,0.00013698,2]
[352991712,1739477441674,-1862.56,0.00013698,2]
[352991713,1739477441683,-1936.34,0.00013698,2]
[352991715,1739477441691,-500.0,0.00013698,2]
[352991717,1739477441700,-500.0,0.00013698,2]
[352991719,1739477441710,-500.0,0.00013698,2]
[352991721,1739477441719,-1550.37,0.00013698,2]
[352991723,1739477441728,-796.15,0.00013698,2]
[352991725,1739477441738,-500.0,0.00013698,2]
[352991727,1739477441747,-1562.73,0.00013698,2]
[352991729,1739477441756,-4136.74,0.00013698,2]
[352991731,1739477441766,-500.0,0.00013698,2]
[352991733,1739477441775,-725.64,0.00013698,2]
[352991735,1739477441784,-500.0,0.00013698,2]
[352991737,1739477441793,-1103.08,0.00013698,2]
[352991739,1739477441803,-500.0,0.00013698,2]
[352991741,1739477441812,-2085.42,0.00013698,2]
[352991743,1739477441828,-1334.71,0.00013698,2]
[352991745,1739477441837,-601.03,0.00013698,2]
[352991748,1739477441847,-340.57047481,0.00013698,2]
[352991750,1739477441857,-5221.61,0.00013698,2]
[352991752,1739477441868,-500.0,0.00013698,2]
[352991754,1739477441877,-500.0,0.00013698,2]
[352991756,1739477441886,-500.0,0.00013698,2]
[352991758,1739477441896,-500.0,0.00013698,2]
[352991759,1739477441906,-500.0,0.00013698,2]
[352991761,1739477441915,-1611.34,0.00013698,2]
[352991763,1739477441924,-500.0,0.00013698,2]
[352991765,1739477441935,-2310.54,0.00013698,2]
[352991767,1739477441944,-1068.57,0.00013698,2]
[352991769,1739477441954,-2284.6,0.00013698,2]
[352991771,1739477441963,-2529.06,0.00013698,2]
[352991773,1739477441972,-500.0,0.00013698,2]
[352991775,1739477441982,-1288.18,0.00013698,2]
[352991777,1739477441992,-500.0,0.00013698,2]
[352991779,1739477442001,-5450.16,0.00013698,2]
[352991781,1739477442011,-500.0,0.00013698,2]
[352991783,1739477442020,-923.96,0.00013698,2]
[352991785,1739477442030,-4418.05,0.00013698,2]
[352991787,1739477442040,-500.0,0.00013698,2]
[352991789,1739477442049,-2341.31,0.00013698,2]
[352991791,1739477442059,-500.0,0.00013698,2]
[352991793,1739477442068,-500.0,0.00013698,2]
[352991795,1739477442077,-3659.39,0.00013698,2]
[352991797,1739477442087,-3587.5,0.00013698,2]
[352991799,1739477442096,-1090.59,0.00013698,2]
[352991801,1739477442106,-1776.48,0.00013698,2]
[352991803,1739477442115,-500.0,0.00013698,2]
[352991805,1739477442124,-1247.59,0.00013698,2]
[352991807,1739477442134,-4771.35,0.00013698,2]
[352991809,1739477442143,-500.0,0.00013698,2]
[352991811,1739477442153,-502.55524579,0.00013698,2]
[352991813,1739477442163,-2649.87,0.00013698,2]
[352991815,1739477442172,-500.0,0.00013698,2]
[352991817,1739477442182,-1528.34842664,0.00013698,2]
[352991823,1739477442221,-762.15157336,0.00013698,2]
[352991825,1739477442230,-936.62,0.00013698,2]
[352991827,1739477442239,-2390.29,0.00013698,2]
[352991829,1739477442248,-895.12,0.00013698,2]
[352991831,1739477442259,-500.0,0.00013698,2]
[352991832,1739477442270,-4157.3,0.00013698,2]
[352991834,1739477442280,-500.0,0.00013698,2]
[352991836,1739477442289,-1368.99,0.00013698,2]
[352991839,1739477442299,-1360.09,0.00013698,2]
[352991842,1739477442310,-349.68775236,0.00013698,2]
[352991845,1739477442319,-590.01,0.00013698,2]
[352991848,1739477442328,-500.0,0.00013698,2]
[352991850,1739477442338,-3287.97,0.00013698,2]
[352991853,1739477442348,-500.0,0.00013698,2]
[352991855,1739477442357,-3259.15,0.00013698,2]
[352991857,1739477442367,-3036.9,0.00013698,2]
[352991860,1739477442376,-577.61,0.00013698,2]
[352991864,1739477442385,-500.0,0.00013698,2]
[352991866,1739477442395,-374.30720546,0.00013698,2]
[352991869,1739477442404,-3574.42,0.00013698,2]
[352991872,1739477442413,-500.0,0.00013698,2]
[352991875,1739477442423,-2396.47,0.00013698,2]
[352991878,1739477442433,-784.99,0.00013698,2]
[352991881,1739477442443,-997.74,0.00013698,2]
[352991884,1739477442452,-500.0,0.00013698,2]
[352991887,1739477442462,-1781.09,0.00013698,2]
[352991890,1739477442471,-502.21304696,0.00013698,2]
[352991893,1739477442480,-500.0,0.00013698,2]
[352991896,1739477442490,-500.0,0.00013698,2]
[352991899,1739477442499,-3783.1,0.00013698,2]
[352991901,1739477442508,-351.86214249,0.00013698,2]
[352991903,1739477442518,-2095.65,0.00013698,2]
[352991906,1739477442527,-500.0,0.00013698,2]
[352991909,1739477442536,-509.00952392,0.00013698,2]
[352991911,1739477442545,-500.0,0.00013698,2]
[352991914,1739477442554,-724.06633644,0.00013698,2]
[352991917,1739477442568,-1984.90366356,0.00013698,2]
[352991919,1739477442578,-1242.27,0.00013698,2]
[352991921,1739477442587,-500.0,0.00013698,2]
[352991923,1739477442596,-624.48,0.00013698,2]
[352991925,1739477442606,-500.0,0.00013698,2]
[352991927,1739477442615,-3768.53,0.00013698,2]
[352991929,1739477442625,-779.22,0.00013698,2]
[352991932,1739477442634,-500.0,0.00013698,2]
[352991935,1739477442643,-500.0,0.00013698,2]
[352991938,1739477442653,-3651.97,0.00013698,2]
[352991940,1739477442662,-531.14508869,0.00013698,2]
[352991942,1739477442672,-500.0,0.00013698,2]
[352991944,1739477442681,-1880.77,0.00013698,2]
[352991946,1739477442690,-1528.35234716,0.00013698,2]
[352991948,1739477442706,-707.88765284,0.00013698,2]
[352991950,1739477442715,-500.0,0.00013698,2]
[352991953,1739477442725,-500.0,0.00013698,2]
[352991954,1739477442734,-500.0,0.00013698,2]